Cogmind - Beta 17 @@@ ROGUE MODE // 2026.08.18 @ 13:49:24 Player: TheSkyeDoctor Result: Destroyed by Lightning with EMDS Performance ------------- Evolutions (4) 2000 Regions Visited (10) 2000 Robots Destroyed (74) 370 Value Destroyed (2124) 2124 Prototype IDs (14) 280 Alien Tech Used (0) 0 Bonus (3458) 3458 TOTAL SCORE: 10232 Bonus ------- High Alert Combat Kills 92 Follower Combat Kills 2577 Network Hubs Disabled 200 Met Imprinter 300 Was Imprinted 300 Built Enhanced Grunts 300 Met R17 at Cetus 500 Friendly Fire -811 Cogmind --------- Core Integrity 0/850 Matter 212/300 Energy 337/350 System Corruption 14% Temperature Cool (5) Movement Walking (190) Ox1 Location -6/Hub_04(d) Parts ------- > --- POWER (1) -------- Quantum Reactor > --- PROPULSION (5) --- Carbon-fiber Leg Carbon-fiber Leg Carbon-fiber Leg Enhanced Flexi-carbon Leg > --- UTILITY (5) ------ Huge Storage Unit Advanced Sensor Array Advanced Signal Interpreter Tactical Coordination Suite Centrium Medium Armor Plating > --- WEAPON (4) ------- Advanced Variable Charge Gun Neutron Cannon Advanced KE Penetrator Advanced KE Penetrator > --- INVENTORY (25) --- Quantum Reactor Quantum Reactor Wheel Advanced Heat Sink High-capacity Storage Unit Advanced Energy Well (500) Matter Compressor (250) Improved Terrain Scanner Seismic Detector Phase Shifter Makeshift Cloaking Device Centrium Medium Armor Plating Experimental Thermal Shield Bomb Factory No. 2 Advanced Variable Charge Gun Advanced Variable Charge Gun Advanced KE Penetrator Bore Cannon Heavy Missile Launcher Makeshift Hammer Peak State ------------ > --- POWER ------------ Quantum Reactor > --- PROPULSION ------- Carbon-fiber Leg Improved Titanium Leg Flexi-carbon Leg Enhanced Flexi-carbon Leg Myomer Leg > --- UTILITY ---------- Huge Storage Unit Advanced Sensor Array Advanced Signal Interpreter Tactical Coordination Suite Centrium Medium Armor Plating > --- WEAPON ----------- Advanced Variable Charge Gun Neutron Cannon Advanced KE Penetrator Advanced KE Penetrator > --- INVENTORY -------- Quantum Reactor Quantum Reactor Carbon-fiber Leg Carbon-fiber Leg Wheel Advanced Heat Sink High-capacity Storage Unit Advanced Energy Well Matter Compressor Improved Terrain Scanner Seismic Detector Phase Shifter Makeshift Cloaking Device Zionite Light Carapace Centrium Medium Armor Plating Experimental Thermal Shield Bomb Factory No. 2 Advanced Variable Charge Gun Advanced Variable Charge Gun Advanced KE Penetrator Bore Cannon Heavy Missile Launcher Makeshift Hammer [Rating: 104] Favorites ----------- Power Ion Engine Engine Ion Engine Power Core Fission Core Reactor Light Antimatter Reactor Propulsion Light Treads Treads Light Treads Leg Improved Titanium Leg Utility Huge Storage Unit Device Seismic Detector Storage Huge Storage Unit Processor Advanced Signal Interpreter Hackware Improved Hacking Suite Protection Light Armor Plating Weapon Bore Cannon Energy Gun Gatling Laser Energy Cannon Plasma Cannon Ballistic Gun Autogun Ballistic Cannon Bore Cannon Launcher Precision Grenade Launcher Special Weapon Remote Datajack Impact Weapon Makeshift Hammer Special Melee Weapon Datajack Build | -11 -10 -9 -9 -7 -6 -6 -6 -6 -6 -6 ------- Run | Yrd Mat Mat Min Zio Pro Fac Ext Cet Arc Hub Slots Evolved 8 | . . 2 . . . 6 . . . . Power . | . . . . . . . . . . . Propulsion 3 | . . . . . . 3 . . . . Utility 3 | . . . . . . 3 . . . . Weapon 2 | . . 2 . . . . . . . . Parts Attached 81 | 7 . 10 . 8 8 13 20 12 . 3 Power 7 | 1 . 1 . 1 . 2 1 1 . . Engine 4 | 1 . 1 . 1 . 1 . . . . Core 1 | . . . . . . . 1 . . . Reactor 2 | . . . . . . 1 . 1 . . Propulsion 22 | 2 . 2 . . 4 3 8 1 . 2 Treads 12 | 2 . 2 . . 4 3 1 . . . Leg 10 | . . . . . . . 7 1 . 2 Wheel . | . . . . . . . . . . . Hover . | . . . . . . . . . . . Flight . | . . . . . . . . . . . Utility 21 | 2 . 2 . 1 . 5 6 4 . 1 Device 9 | 1 . . . 1 . 2 3 2 . . Storage 5 | 1 . 2 . . . 1 . 1 . . Processor 2 | . . . . . . 1 1 . . . Hackware 1 | . . . . . . . 1 . . . Protection 4 | . . . . . . 1 1 1 . 1 Artifact . | . . . . . . . . . . . Weapon 31 | 2 . 5 . 6 4 3 5 6 . . Energy Gun 7 | 1 . 1 . . 1 2 1 1 . . Energy Cannon 3 | . . 1 . 1 . . . 1 . . Ballistic Gun 11 | 1 . 3 . 2 2 . . 3 . . Ballistic Cannon 5 | . . . . . 1 . 3 1 . . Launcher 2 | . . . . 2 . . . . . . Special Weapon 1 | . . . . . . . 1 . . . Impact Weapon 1 | . . . . 1 . . . . . . Slashing Weapon . | . . . . . . . . . . . Piercing Weapon . | . . . . . . . . . . . Special Melee Weapon 1 | . . . . . . 1 . . . . Unidentified Prototypes 12 | . . 1 . 2 . . 1 7 . 1 Parts Lost 29 | . . . . . 3 . 19 1 . 6 Power 2 | . . . . . . . 2 . . . Propulsion 10 | . . . . . . . 7 . . 3 Utility 5 | . . . . . . . 3 . . 2 Weapon 12 | . . . . . 3 . 7 1 . 1 Highest Loss Streak 10 | . . . . . 1 . 10 1 . 2 To Critical Strikes 3 | . . . . . . . 3 . . . Average Backups 15 | 1 3 7 9 15 18 15 17 20 24 21 Power 1 | . 1 1 1 1 2 2 1 1 2 2 Propulsion 3 | . 1 2 3 3 4 3 3 3 3 2 Utility 6 | . 1 1 2 3 5 5 9 11 12 11 Weapon 3 | . . 1 2 4 5 4 2 4 6 6 Tool/Special . | . . . . . . . . . . . Unused Backups 18 | . . 1 . 2 1 1 . 2 . 11 Power 5 | . . 1 . . 1 . . 1 . 2 Propulsion 1 | . . . . . . . . . . 1 Utility 6 | . . . . . . 1 . 1 . 4 Weapon 6 | . . . . 2 . . . . . 4 Tool/Special . | . . . . . . . . . . . Average Slot Usage (%) 95 | . 100 94 100 99 99 93 89 99 100 99 Engine 4 | . 14 11 11 11 11 . . . . . Core 1 | . . . . . . . 4 . . . Reactor 2 | . . . . . . 5 1 5 6 6 Treads 15 | . 28 22 22 22 22 27 8 . . . Leg 12 | . . . . . . . 22 33 33 32 Device 11 | . 14 11 11 11 11 13 10 12 13 13 Storage 8 | . 14 11 11 11 11 6 6 6 6 6 Processor 2 | . . . . . . 5 3 6 6 6 Hackware 2 | . . . . . . . 5 6 6 . Protection 1 | . . . . . . 5 1 . . 5 Energy Gun 8 | . 14 11 11 5 8 14 9 6 6 6 Energy Cannon 4 | . . 9 11 11 6 . . 1 6 6 Ballistic Gun 11 | . 14 18 22 21 21 9 . 1 6 12 Ballistic Cannon 3 | . . . . . 5 . 8 10 2 . Impact Weapon 1 | . . . . 5 1 . . . . . Peak Build Rating 104 | 7 7 13 13 34 38 59 72 101 101 104 Average Rating 47 | 5 7 11 13 22 35 53 60 87 97 99 On Entrance 39 | . 7 7 13 13 34 33 59 72 101 97 Avg Prop Armor Cover (%) . | . . . . . . . . . . . Naked Turns . | . . . . . . . . . . . Heaviest Build 144 | 15 15 57 57 67 70 116 144 132 135 139 Greatest Support 116 | 40 40 43 43 43 48 116 116 108 108 108 Greatest Overweight (x) 2 | . . 1 1 1 1 1 2 1 1 1 Average Overweight (x) . | . . . 1 1 1 . . 1 1 1 Largest Inventory Capacity 25 | 8 8 20 20 20 20 25 25 25 25 25 Average Capacity 20 | 7 8 8 20 20 20 22 25 25 25 25 Most Carried 25 | 3 5 10 9 20 20 21 25 25 25 25 Average Carried 17 | 1 3 7 9 16 18 16 20 23 25 22 Final Capacity 25 | 8 8 20 20 20 20 25 25 25 25 25 Final Carried 25 | 3 5 9 9 20 17 20 17 25 25 21 Class Distribution -------------------- 24% | Scavenger-Skirmisher 21% | Gunner 15% | Commander-Skirmisher 15% | Derelict-Gunner 8% | Commander-Gunner 7% | Mutant 3% | Derelict-Skirmisher Dominant Class ---------------- Mutant | -10/Materials Gunner | -9/Materials Gunner | -9/Mines Gunner | -7/Zion Derelict-Gunner | -6/Proximity Caves Scavenger-Skirmisher | -6/Factory Commander-Skirmisher | -6/Extension Commander-Skirmisher | -6/Cetus Commander-Skirmisher | -6/Archives Scavenger-Skirmisher | -6/Hub_04(d) Resources | -11 -10 -9 -9 -7 -6 -6 -6 -6 -6 -6 ----------- Run | Yrd Mat Mat Min Zio Pro Fac Ext Cet Arc Hub Matter Collected 3394 | 288 48 295 . 20 480 177 1584 183 4 315 Remotely . | . . . . . . . . . . . Salvage Created 3076 | 142 133 716 . . 230 146 1223 . . 486 Parts 163 | 13 11 41 . . 11 7 55 . . 25 Haulers Intercepted 6 | . 1 4 . . . 1 . . . . Recyclers Shooed 3 | 1 . 1 . . . . 1 . . . Parts Field Recycled . | . . . . . . . . . . . Retrieved Matter . | . . . . . . . . . . . Parts Self-Destructed 20 | . . . . . 20 . . . . . Prevented 9 | . . . . . 9 . . . . . Parts Restored . | . . . . . . . . . . . Kills | -11 -10 -9 -9 -7 -6 -6 -6 -6 -6 -6 ------- Run | Yrd Mat Mat Min Zio Pro Fac Ext Cet Arc Hub Combat Hostiles Destroyed 46 | . 6 13 . . 6 2 16 . . 3 Melee 1 | . . . . . . . 1 . . . Guns 27 | . 6 10 . . 3 2 4 . . 2 Cannons 17 | . . 3 . . 3 . 10 . . 1 Classes Destroyed 16 | 2 2 4 . . 1 1 2 . . 4 Worker 4 | . . 1 . . . . 1 . . 2 Builder 3 | . . . . . . . 3 . . . Tunneler 4 | 3 . . . . . . . . . 1 Hauler 6 | . 1 4 . . . 1 . . . . Recycler 3 | 1 . . . . . . 2 . . . Operator 1 | . . . . . . . . . . 1 Watcher 2 | . . 1 . . . . . . . 1 Swarmer 14 | . 6 4 . . 4 . . . . . Grunt 15 | . . 6 . . 1 . 8 . . . Sentry 10 | . . 3 . . . . 6 . . 1 Demolisher 1 | . . . . . . . . . . 1 Hunter 1 | . . . . . . . 1 . . . Programmer 4 | . . . . . . 2 1 . . 1 Behemoth 1 | . . . . . 1 . . . . . Z-Light 2 | . . . . . . . . . . 2 Butcher 1 | . . . . . . . . . . 1 Guerrilla 1 | . . . . . . . . . . 1 Wizard 1 | . . . . . . . . . . 1 Best Kill Streak 9 | 3 3 9 . . 2 1 6 . . 4 Combat Bots Only 8 | . 3 8 . . 2 1 4 . . 3 Max Kills in Single Turn 4 | 2 1 2 . . 1 1 2 . . 4 Gunslinging . | . . . . . . . . . . . Exploded . | . . . . . . . . . . . Melee 1 | . . . . . . . 1 . . . Uniques/NPCs Destroyed . | . . . . . . . . . . . Combat | -11 -10 -9 -9 -7 -6 -6 -6 -6 -6 -6 -------- Run | Yrd Mat Mat Min Zio Pro Fac Ext Cet Arc Hub Hostile Shots Fired 495 | . 51 59 . . 63 3 291 1 . 27 Missed 131 | . 13 16 . . 19 . 76 . . 7 Hits 364 | . 38 43 . . 44 3 215 1 . 20 Projectile 364 | . 38 43 . . 44 3 215 1 . 20 AOE 4 | . . . . . . . . . . 4 Critical Strikes 12 | . . . . . 1 1 7 . . 3 Damage Taken 5504 | . 309 467 . . 866 48 2797 53 . 964 Core 1194 | . 81 92 . . 162 . 721 . . 138 Absorbed by Shields 904 | . . . . . . . 854 50 . . Core Remaining (%) 67 | 100 67 . . . 36 . . . . . Volleys Fired 152 | 6 19 31 . . 22 8 47 . 4 15 Largest 4 | 2 2 4 . . 4 4 4 . 2 4 Hottest 253 | 70 70 156 . . 203 229 253 . 83 240 Shots Fired 441 | 12 32 112 . . 78 30 112 1 8 56 Gun 318 | 12 32 81 . . 50 30 68 . 3 42 Cannon 118 | . . 31 . . 28 . 40 1 4 14 Launcher 3 | . . . . . . . 3 . . . Special 2 | . . . . . . . 1 . 1 . Kinetic 240 | 6 19 50 . . 55 14 58 1 6 31 Thermal 171 | 6 13 62 . . 16 8 40 . 1 25 Explosive 3 | . . . . . . . 3 . . . Electromagnetic 25 | . . . . . 7 8 10 . . . Robot Hit Streak 14 | 4 7 8 . . 11 9 14 . 4 6 Robot Miss Streak 10 | 1 5 4 . . 9 3 10 2 3 5 Penetration Max 2 | . . . . . . . 2 . . 1 Secondary Targets 4 | . 3 . . . . . 1 . . . Max Gunslinging Chain 1 | . 1 . . . . . 1 . . . Shots Hit Robots 277 | 9 18 66 . . 41 20 92 . 5 26 Core Hits 143 | 5 9 25 . . 16 10 52 1 1 24 Critical Kills 11 | . . . . . . . 9 . . 2 Critical Parts Destroyed 9 | . . . . . . . 7 . 2 . Critical Strikes 20 | . . . . . . . 16 . 2 2 Destroy 20 | . . . . . . . 16 . 2 2 Melee Attacks 33 | . . . . 1 . 6 26 . . . Impact 10 | . . . . 1 . 4 5 . . . Slashing . | . . . . . . . . . . . Piercing . | . . . . . . . . . . . Sneak Attacks 24 | . . . . . . 2 22 . . . Combat Hostiles . | . . . . . . . . . . . Follow-up Attacks . | . . . . . . . . . . . Damage Inflicted 6827 | 126 236 1035 . . 820 393 2269 15 105 1828 Guns 3659 | 126 236 680 . . 548 393 1040 . 26 610 Cannons 1831 | . . 355 . . 272 . 722 15 79 388 Explosions 1026 | . . . . . . . 196 . . 830 Melee 287 | . . . . . . . 287 . . . Ramming 24 | . . . . . . . 24 . . . Kinetic 3012 | 51 150 472 . . 584 211 1026 15 65 438 Thermal 2223 | 75 86 563 . . 184 136 579 . 40 560 Explosive 196 | . . . . . . . 196 . . . Electromagnetic 1085 | . . . . . 52 46 157 . . 830 Impact 287 | . . . . . . . 287 . . . Slashing . | . . . . . . . . . . . Piercing . | . . . . . . . . . . . Highest Corruption 13 | . . . . . 1 1 8 8 8 13 Average Corruption 4 | . . . . . 1 1 3 8 8 9 Corruption Purged . | . . . . . . . . . . . Corruption Blocked . | . . . . . . . . . . . Effects 101 | . . . . . 1 2 41 26 6 25 Message Errors 37 | . . . . . . . 17 11 1 8 Matter Fused 21 | . . . . . . . 8 4 . 9 Heat Flow Errors 14 | . . . . . . 1 5 2 3 3 Energy Discharges 4 | . . . . . . . 2 1 . 1 Parts Rejected 2 | . . . . . . . 1 . . 1 Parts Fused 1 | . . . . . . . 1 . . . Data Loss (minor) 11 | . . . . . 1 1 3 3 1 2 Data Loss (major) 5 | . . . . . . . 2 3 . . Misfires 4 | . . . . . . . 1 1 1 1 Alerts 2 | . . . . . . . 1 1 . . Overload Shots . | . . . . . . . . . . . Overflow Damage 199 | . . . . . . . 76 . . 123 Projectiles 28 | . . . . . . . 16 . . 12 Explosions 111 | . . . . . . . . . . 111 Melee 60 | . . . . . . . 60 . . . Knockbacks 7 | . . . . . . . 6 1 . . Impact . | . . . . . . . . . . . Kinetic 5 | . . . . . . . 4 1 . . Secondary 2 | . . . . . . . 2 . . . Self-Inflicted Damage 246 | . . . . . . . 138 . . 108 Shots 4 | . . . . . . . 3 . . 1 Rammed 1 | . . . . . . . 1 . . . Targets Rammed 1 | . . . . . . . 1 . . . Kicked . | . . . . . . . . . . . Crushed . | . . . . . . . . . . . Highest Temperature 773 | 18 45 326 . 399 546 189 634 186 277 773 Average Temperature 144 | 9 20 108 . 199 170 83 164 74 130 208 Received Heat Transfer 780 | . . 204 . . 171 . 372 . . 33 Effects 51 | . . . . . 12 . 22 . . 17 Shutdowns 9 | . . . . . 2 . 3 . . 4 Energy Bleed 8 | . . . . . 2 . 2 . . 4 Interference 6 | . . . . . 3 . . . . 3 Matter Decay 10 | . . . . . 3 . 4 . . 3 Short Circuit 2 | . . . . . 1 . 1 . . . Damage (major) 13 | . . . . . 1 . 10 . . 2 Damage (core) 3 | . . . . . . . 2 . . 1 Siege Activations . | . . . . . . . . . . . Martial Activations . | . . . . . . . . . . . Shielding Activations . | . . . . . . . . . . . Robots Disrupted . | . . . . . . . . . . . Combat Hostiles . | . . . . . . . . . . . Robots Corrupted 2 | . . . . . . . 1 . . 1 Combat Hostiles 1 | . . . . . . . 1 . . . Parts Fried 16 | . . . . . . . 5 . . 11 Impact Corruptions 2 | . . . . . . . 2 . . . Robots Melted . | . . . . . . . . . . . Combat Hostiles . | . . . . . . . . . . . Parts Melted 2 | . 1 . . . . . 1 . . . Heat Transferred 3877 | 222 259 1369 . . 350 210 1208 . . 259 Parts Sabotaged . | . . . . . . . . . . . Parts Stolen . | . . . . . . . . . . . Parts Stripped . | . . . . . . . . . . . Power Chain Reactions . | . . . . . . . . . . . Alert | -11 -10 -9 -9 -7 -6 -6 -6 -6 -6 -6 ------- Run | Yrd Mat Mat Min Zio Pro Fac Ext Cet Arc Hub Maximum Alert Level 3 | . . . . . . . 3 2 1 2 Low Security (%) 57 | 100 100 100 100 . . 100 50 . 16 14 Level 1 29 | . . . . . . . 46 51 83 27 Level 2 12 | . . . . . . . 2 48 . 58 Level 3 . | . . . . . . . . . . . Level 4 . | . . . . . . . . . . . Level 5 . | . . . . . . . . . . . High Security . | . . . . . . . . . . . Max Security . | . . . . . . . . . . . Peak Influence 790 | 10 70 188 69 . . 126 790 502 260 667 Initial 442 | . . . 69 . . 94 17 442 133 70 Average 194 | . 21 51 68 . . 40 199 401 218 461 Influence Increases 4587 | 20 147 378 . . 579 217 1681 343 138 1084 Destroy 0b10 Robot/C 2100 | . 120 260 . . 340 120 700 160 60 340 Destroy 0b10 Robot/NC 160 | 20 5 30 . . . 5 40 10 . 50 Destroy Leader 366 | . 22 70 . . 50 32 94 . . 98 Allied During Kill 1458 | . . . . . 159 34 700 168 60 337 Successful Hack 14 | . . . . . . 4 10 . . . Disable Machine 240 | . . . . . . 15 75 . 15 135 Destroy Structure 204 | . . 3 . . . 7 62 5 3 124 Lose Combat Pursuer 45 | . . 15 . . 30 . . . . . Influence Decreases 3967 | 20 147 201 118 59 428 332 927 800 270 665 Entered New Map 922 | . . . 108 59 . 57 19 348 200 131 Time Decay 2244 | 20 147 201 10 . 318 255 587 302 70 334 Lost Part 280 | . . . . . 30 . 180 10 . 60 Lost Ally 521 | . . . . . 80 20 141 140 . 140 Squads Dispatched 14 | . . 3 . . . 2 3 . . 6 Investigation 3 | . . 1 . . . . 1 . . 1 Extermination 2 | . . . . . . 1 . . . 1 Reinforcement 7 | . . 2 . . . 1 2 . . 2 Assault . | . . . . . . . . . . . Garrison 2 | . . . . . . . . . . 2 Intercept . | . . . . . . . . . . . Searches Triggered . | . . . . . . . . . . . Construction Impeded 2 | . . . . . . . 2 . . . Haulers Reinforced . | . . . . . . . . . . . Active Scanning Responses . | . . . . . . . . . . . Cargo Convoy Interrupts . | . . . . . . . . . . . Stealth | -11 -10 -9 -9 -7 -6 -6 -6 -6 -6 -6 --------- Run | Yrd Mat Mat Min Zio Pro Fac Ext Cet Arc Hub Distress Signals 8 | . . 1 . . . . 1 2 . 4 Communications Jammed . | . . . . . . . . . . . Distress Signals . | . . . . . . . . . . . Times Spotted 121 | . 9 19 . . 21 6 35 7 3 21 Peak Tracking Total 5 | . 3 5 . . 5 1 4 5 2 5 Tactical Retreats 2 | . . 1 . . 1 . . . . . Traps | -11 -10 -9 -9 -7 -6 -6 -6 -6 -6 -6 ------- Run | Yrd Mat Mat Min Zio Pro Fac Ext Cet Arc Hub Traps Triggered 7 | . . 1 . . . . 4 . . 2 Indirectly . | . . . . . . . . . . . Trap Hack Attempts . | . . . . . . . . . . . Triggered . | . . . . . . . . . . . Disarmed . | . . . . . . . . . . . Reprogrammed . | . . . . . . . . . . . Reused . | . . . . . . . . . . . Traps Extracted . | . . . . . . . . . . . Installed 6 | . . . . . . . 6 . . . Triggered . | . . . . . . . . . . . Fabricated Traps 10 | . . . . . . . 10 . . . Most Traps Carried 9 | . . . . . . . 9 2 . . Machines | -11 -10 -9 -9 -7 -6 -6 -6 -6 -6 -6 ---------- Run | Yrd Mat Mat Min Zio Pro Fac Ext Cet Arc Hub Machines Disabled 18 | . . . . . . 1 7 . 1 9 Max in Single Turn 8 | . . . . . . 1 2 . 1 8 Garrison Access 1 | . . . . . . . . . . 1 Network Hub 1 | . . . . . . . . . . 1 Energy Cycler 4 | . . . . . . . 4 . . . Machines Repaired . | . . . . . . . . . . . Machines Dismantled . | . . . . . . . . . . . Machines Sabotaged . | . . . . . . . . . . . Overloaded Fab Kills . | . . . . . . . . . . . Hacking | -11 -10 -9 -9 -7 -6 -6 -6 -6 -6 -6 --------- Run | Yrd Mat Mat Min Zio Pro Fac Ext Cet Arc Hub Machines Accessed 12 | . 1 1 . . . 3 5 1 . 1 Terminals 8 | . 1 . . . . 1 5 1 . . Fabricators . | . . . . . . . . . . . Repair Stations . | . . . . . . . . . . . Recycling Units . | . . . . . . . . . . . Scanalyzers 2 | . . 1 . . . 1 . . . . Garrison Access 2 | . . . . . . 1 . . . 1 Total Hacks 26 | . 2 3 . . . 5 11 3 . 2 Successful 9 | . 1 2 . . . 1 4 . . 1 Failed 16 | . 1 . . . . 4 7 3 . 1 Catastrophic 3 | . . . . . . . 1 2 . . Database Lockouts 1 | . . 1 . . . . . . . . Manual 27 | . . . . 1 . 7 6 1 . 12 Terminals 18 | . 2 . . . . 2 11 3 . . Fabricators . | . . . . . . . . . . . Repair Stations . | . . . . . . . . . . . Recycling Units . | . . . . . . . . . . . Scanalyzers 4 | . . 3 . . . 1 . . . . Garrison Access 4 | . . . . . . 2 . . . 2 Terminal Hacks 6 | . 1 . . . . 1 4 . . . Prototype ID Bank 1 | . 1 . . . . . . . . . Open Door 5 | . . . . . . 1 4 . . . Fabricator Hacks . | . . . . . . . . . . . Repair Station Hacks . | . . . . . . . . . . . Recycling Unit Hacks . | . . . . . . . . . . . Scanalyzer 2 | . . 2 . . . . . . . . Retrieve Study 2 | . . 2 . . . . . . . . Garrison Access Hacks 1 | . . . . . . . . . . 1 Seal Access 1 | . . . . . . . . . . 1 Unauthorized Hacks . | . . . . . . . . . . . Terminals . | . . . . . . . . . . . Fabricators . | . . . . . . . . . . . Repair Stations . | . . . . . . . . . . . Recycling Units . | . . . . . . . . . . . Scanalyzers . | . . . . . . . . . . . Garrison Access . | . . . . . . . . . . . Data Cores Recovered . | . . . . . . . . . . . Used . | . . . . . . . . . . . Hacking Detections 9 | . . 1 . . . 3 3 1 . 1 Full Trace Events 1 | . . . . . . . 1 . . . Feedback Events . | . . . . . . . . . . . Feedback Blocked . | . . . . . . . . . . . Robot Schematics Acquired 4 | . . . . 4 . . . . . . Robots Built . | . . . . . . . . . . . Authchips . | . . . . . . . . . . . Time . | . . . . . . . . . . . Total Robot Build Rating . | . . . . . . . . . . . Part Schematics Acquired 15 | . . . . 15 . . . . . . Parts Built . | . . . . . . . . . . . Authchips . | . . . . . . . . . . . Time . | . . . . . . . . . . . Total Part Build Rating . | . . . . . . . . . . . Part Studies Acquired 2 | . . 2 . . . . . . . . Parts Repaired . | . . . . . . . . . . . Time . | . . . . . . . . . . . Parts Recycled . | . . . . . . . . . . . Recycled Matter . | . . . . . . . . . . . Retrieved Matter . | . . . . . . . . . . . Retrieved Components . | . . . . . . . . . . . Parts Scanalyzed . | . . . . . . . . . . . Part Schematics Acquired . | . . . . . . . . . . . Parts Damaged . | . . . . . . . . . . . Bothacking | -11 -10 -9 -9 -7 -6 -6 -6 -6 -6 -6 ------------ Run | Yrd Mat Mat Min Zio Pro Fac Ext Cet Arc Hub Used RIF Installer . | . . . . . . . . . . . Robots Hacked 5 | . . . . . . 2 3 . . . Non-combat 4 | . . . . . . 2 2 . . . Combat 1 | . . . . . . . 1 . . . Robot Hacks Applied 5 | . . . . . . 2 3 . . . parse_system 5 | . . . . . . 2 3 . . . Relay Couplers Released . | . . . . . . . . . . . Fabnet Peak Effective % . | . . . . . . . . . . . Robots Rewired 11 | . . . . . . . 11 . . . Allies Hacked 2 | . . . . . . 1 1 . . . Hacks Repelled . | . . . . . . . . . . . Allies | -11 -10 -9 -9 -7 -6 -6 -6 -6 -6 -6 -------- Run | Yrd Mat Mat Min Zio Pro Fac Ext Cet Arc Hub Total Allies 38 | . . . . 7 . 2 20 5 1 3 Largest Group 17 | . . . . 7 7 4 17 15 12 14 Highest-Rated Group 923 | . . . . 231 231 168 671 923 749 753 Highest-Rated Ally 159 | . . . . 42 42 51 159 147 147 96 Zionite Dispatches 3 | . . . . . . 1 1 . . 1 Light 1 | . . . . . . . . . . 1 Hacker 1 | . . . . . . 1 . . . . Infowar Resupply 1 | . . . . . . . 1 . . . Total Orders 1 | . . . . . . . 1 . . . DROP 1 | . . . . . . . 1 . . . Ally Attacks 393 | . . . . . 76 6 171 40 15 85 Total Damage 10335 | . . . . . 1954 214 3987 874 458 2848 Kills 72 | . . . . . 12 4 21 10 4 21 Allies Corrupted 1 | . . . . . . . . . . 1 Allies Melted 1 | . . . . . . . 1 . . . Intel | -11 -10 -9 -9 -7 -6 -6 -6 -6 -6 -6 ------- Run | Yrd Mat Mat Min Zio Pro Fac Ext Cet Arc Hub Active Infowar (turns) 8170 | 53 434 674 20 1822 . 1009 2601 668 141 748 Sensors 2311 | . . . . . . . 754 668 141 748 Terrain 1772 | . . . . . . 1009 763 . . . Seismic 4087 | 53 434 674 20 1822 . . 1084 . . . Cloaking 9 | . . . . . . . 9 . . . Robot Analysis Total . | . . . . . . . . . . . Derelict Logs Recovered 1 | . . . . 1 . . . . . . Drone Launches . | . . . . . . . . . . . Drone Recoveries . | . . . . . . . . . . . Zionite Intel Received 3 | . . . . . . 1 . . . 2 Branch Access 2 | . . . . . . 1 . . . 1 Prototype Stockpiles 1 | . . . . . . . . . . 1 Exploration | -11 -10 -9 -9 -7 -6 -6 -6 -6 -6 -6 ------------- Run | Yrd Mat Mat Min Zio Pro Fac Ext Cet Arc Hub Turns Passed 9341 | 150 434 674 20 2186 700 1009 2611 668 141 748 Spaces Moved 4338 | 81 239 321 11 1058 276 522 1131 296 58 345 Core 9 | 9 . . . . . . . . . . Treads 2828 | 72 239 321 11 1058 276 522 329 . . . Legs 1501 | . . . . . . . 802 296 58 345 Wheels . | . . . . . . . . . . . Hover . | . . . . . . . . . . . Flight . | . . . . . . . . . . . Fastest Speed 50 | 50 160 160 200 200 200 162 162 192 192 190 Average Speed 190 | 147 160 161 200 200 218 177 195 194 192 191 Slowest Speed 280 | 160 160 200 200 200 245 222 280 196 192 192 Overloaded Moves . | . . . . . . . . . . . Propulsion Burnouts . | . . . . . . . . . . . Robots Hopped . | . . . . . . . . . . . Potential Cave-ins . | . . . . . . . . . . . Cave-ins Triggered . | . . . . . . . . . . . Exploration Rate (%) 43 | 4 39 27 10 91 44 14 77 69 70 38 Regions Visited 10 Branch Regions 7 Pre-discovered Areas 2 | . . . . 2 . . . . . . Known Exits Taken 4 | . . . . . . 1 1 1 1 . Unknown Exits Taken 6 | 1 1 1 1 1 1 . . . . . Scrap Searched 2 | . . . . 1 1 . . . . . Spaces Dug 4 | . . . . . . 4 . . . . Terrain Destroyed 249 | . . . . . 6 4 50 . 5 184 Melee 4 | . . . . . . 4 . . . . Projectile 45 | . . . . . 6 . 10 . 5 24 AOE 200 | . . . . . . . 40 . . 160 Terrain Rammed . | . . . . . . . . . . . Walls Destroyed . | . . . . . . . . . . . Machines Disabled . | . . . . . . . . . . . Actions | -11 -10 -9 -9 -7 -6 -6 -6 -6 -6 -6 --------- Run | Yrd Mat Mat Min Zio Pro Fac Ext Cet Arc Hub Total 5097 | 96 259 414 10 1129 324 578 1422 392 81 392 Wait 359 | . . 39 . 39 10 20 153 56 18 24 Move 4328 | 80 238 320 10 1057 275 521 1130 295 57 345 Hop . | . . . . . . . . . . . Pick Up 56 | 3 2 5 . 12 2 8 10 13 . 1 Fast Attach 26 | 7 . 3 . 2 . 1 7 5 . 1 Attach 31 | . . . . 2 3 6 15 . . 5 Detach 8 | . . . . 3 . . 2 3 . . Swap 45 | . . 7 . 6 5 7 9 8 2 1 Drop 49 | . . 9 . 7 7 1 13 12 . . Fire 152 | 6 19 31 . . 22 8 47 . 4 15 Melee 33 | . . . . 1 . 6 26 . . . Ram . | . . . . . . . . . . . Kick . | . . . . . . . . . . . Crush 1 | . . . . . . . 1 . . . Escape Stasis 2 | . . . . . . . 2 . . . Rewire 1 | . . . . . . . 1 . . . Trap 6 | . . . . . . . 6 . . . Miscellaneous . | . . . . . . . . . . . Route ------- -11/Scrapyard -10/Materials -9/Materials -9/Mines -7/Zion -6/Proximity Caves -6/Factory (discovered 4 exits: Low x2 / *Ext x2) -6/Extension (discovered 3 exits: *Fac x2 / *Cet) -6/Cetus (discovered 2 exits: *Fac / *Arc) -6/Archives -6/Hub_04(d) (discovered 1 exit: *Fac) History --------- Turn | Location | Event 26 | -11/Scrapyard | Discovered new exit (range 15) 151 | -11/Scrapyard | Entered Materials 304 | -10/Materials | Build established: Mutant 574 | -10/Materials | Discovered new exit (range 7) 585 | -10/Materials | Entered another Materials area 585 | -9/Materials | Evolved 2 slots: Weapon x2 816 | -9/Materials | Central database locked down 974 | -9/Materials | Build established: Gunner 1149 | -9/Materials | Destroyed 8 combat bots 1223 | -9/Materials | Discovered new exit (range 5) 1259 | -9/Materials | Entered Mines 1260 | -9/Mines | A Derelict revealed a hidden shortcut to a safe place 1279 | -9/Mines | Entered Zion 1363 | -7/Zion | Gained Derelict followers 1451 | -7/Zion | Discovered new exit (range 14) 1940 | -7/Zion | Found Prototype Device 2080 | -7/Zion | Found Prototype Launcher 2080 | -7/Zion | Identified Gui. Missile Launcher 2779 | -7/Zion | Learned Factory emergency access door positions 2797 | -7/Zion | Received a visual enhancement algorithm 2799 | -7/Zion | Ran a visual enhancement algorithm 3007 | -7/Zion | Met Imprinter 3019 | -7/Zion | Build established: Derelict-Gunner 3045 | -7/Zion | Imprinted 3047 | -7/Zion | Declared Zion's savior 3465 | -7/Zion | Entered Proximity Caves 3465 | -6/Proximity Caves | Accompanied by 7 allies 3467 | -6/Proximity Caves | Attracted the attention of an 0b10 checkpoint 3525 | -6/Proximity Caves | Spotted B-75 Beast 3549 | -6/Proximity Caves | Destroyed B-75 Beast 3880 | -6/Proximity Caves | Core integrity fell below 50% 4144 | -6/Proximity Caves | Discovered new exit (range 9) 4165 | -6/Proximity Caves | Entered Factory 4165 | -6/Factory | Accompanied by 2 allies 4165 | -6/Factory | Evolved 6 slots: Propulsion x3, Utility x3 4764 | -6/Factory | Build established: Derelict-Skirmisher 4822 | -6/Factory | Retrieved Zion intel report: Branch Access 4822 | -6/Factory | Identified exit to Lower Caves 4822 | -6/Factory | Identified exit to Extension 4823 | -6/Factory | Zion Hacker squad teleported in 5087 | -6/Factory | Build established: Scavenger-Skirmisher 5174 | -6/Factory | Entered Extension 5174 | -6/Extension | Accompanied by 2 allies 5243 | -6/Extension | Rescued a captive Derelict 5244 | -6/Extension | Rescued a captive Derelict 5292 | -6/Extension | Zion Infowar Resupply teleported in 5400 | -6/Extension | Rescued A7 5697 | -6/Extension | Rescued a captive Derelict 5698 | -6/Extension | Rescued a captive Derelict 5768 | -6/Extension | Rescued a captive Derelict 5769 | -6/Extension | Rescued a captive Derelict 5873 | -6/Extension | Lost 5 parts (1p3n1w) 5873 | -6/Extension | Lost 3 allies 5907 | -6/Extension | Spotted B-75 Beast 5923 | -6/Extension | Spotted B-75 Beast 5928 | -6/Extension | Core integrity fell below 50% 5939 | -6/Extension | Identified Bomb Factory No. 2 5945 | -6/Extension | Core integrity fell below 20% 5952 | -6/Extension | Allies destroyed B-75 Beast 5967 | -6/Extension | Allies destroyed B-75 Beast 5969 | -6/Extension | Lost 10 parts (1p2n3u4w) 6165 | -6/Extension | Energy Cycler disabled 6165 | -6/Extension | Rescued a captive Derelict 6168 | -6/Extension | Rescued a captive Derelict 6168 | -6/Extension | Rescued a captive Derelict 6168 | -6/Extension | Rescued a captive Derelict 6169 | -6/Extension | Rescued a captive Derelict 6394 | -6/Extension | Discovered new exit (range 15) 6538 | -6/Extension | Build established: Commander-Gunner 6591 | -6/Extension | Terminal network hard line cut 7317 | -6/Extension | Build established: Commander-Skirmisher 7698 | -6/Extension | Discovered new exit (range 10) 7703 | -6/Extension | Discovered new exit (range 6) 7753 | -6/Extension | Identified exit to Cetus 7785 | -6/Extension | Entered Cetus 7785 | -6/Cetus | Accompanied by 14 allies (A7) 7790 | -6/Cetus | Acquired a Cetus Manufacturing Module code from A7 7830 | -6/Cetus | Spotted Cetus Guard 7830 | -6/Cetus | Spotted Cetus Guard 7839 | -6/Cetus | Allies destroyed Cetus Guard 7844 | -6/Cetus | Spotted Cetus Guard 7844 | -6/Cetus | Spotted Cetus Guard 7847 | -6/Cetus | Allies destroyed Cetus Guard 7848 | -6/Cetus | Allies destroyed Cetus Guard 7876 | -6/Cetus | Lost 4 allies 8006 | -6/Cetus | Started Cetus Manufacturing Module 8031 | -6/Cetus | Manufactured an Enhanced Grunt 8056 | -6/Cetus | Manufactured an Enhanced Grunt 8081 | -6/Cetus | Manufactured an Enhanced Grunt 8106 | -6/Cetus | Manufactured an Enhanced Grunt 8131 | -6/Cetus | Manufactured an Enhanced Grunt 8168 | -6/Cetus | Discovered new exit (range 16) 8219 | -6/Cetus | Spotted Cetus Guard 8219 | -6/Cetus | Spotted Cetus Guard 8234 | -6/Cetus | Spotted Cetus Guard 8235 | -6/Cetus | Allies destroyed Cetus Guard 8239 | -6/Cetus | Allies destroyed Cetus Guard 8266 | -6/Cetus | Lost 3 allies 8289 | -6/Cetus | Found Prototype Device 8289 | -6/Cetus | Identified Exp. Thermal Shield 8301 | -6/Cetus | Discovered new exit (range 16) 8317 | -6/Cetus | Scared off Revision 17 8440 | -6/Cetus | Identified exit to Archives 8453 | -6/Cetus | Entered Archives 8453 | -6/Archives | Accompanied by 12 allies (A7) 8519 | -6/Archives | Discovered new exit (range 16) 8544 | -6/Archives | Unable to access archive contents 8577 | -6/Archives | Identified exit to Hub_04(d) 8594 | -6/Archives | Entered Hub_04(d) 8594 | -6/Hub_04(d) | Accompanied by 11 allies 8642 | -6/Hub_04(d) | Discovered new exit (range 15) 8672 | -6/Hub_04(d) | Identified exit to Factory 8699 | -6/Hub_04(d) | Zion Light squad teleported in 8764 | -6/Hub_04(d) | Lost 4 allies 8859 | -6/Hub_04(d) | Retrieved Zion intel report: Prototype Stockpiles 8895 | -6/Hub_04(d) | Build established: Scavenger-Skirmisher 8909 | -6/Hub_04(d) | Network Hub disabled 8910 | -6/Hub_04(d) | System corruption reached 10% 8935 | -6/Hub_04(d) | Murdered 3 allies 9095 | -6/Hub_04(d) | Retrieved Zion intel report: Branch Access 9095 | -6/Hub_04(d) | Ran a visual enhancement algorithm 9191 | -6/Hub_04(d) | Lost 3 allies 9208 | -6/Hub_04(d) | Garrison activated, responded to threat 9332 | -6/Hub_04(d) | Spotted Lightning 9333 | -6/Hub_04(d) | Spotted Lightning 9334 | -6/Hub_04(d) | Spotted Lightning 9342 | -6/Hub_04(d) | Destroyed by Lightning with EMDS Last Messages --------------- 09244_ Power failure, Quantum Reactor shutdown. 09244_ Acquired Imp. Titanium Leg. 09250_ K-01 Serf collects debris. 09252_ Acquired 84 matter. 09252_ K-01 Serf collects debris. 09256_ System corrupted: Component data lost. 09256_ K-01 Serf collects debris. 09258_ The unstable cave ceiling collapses. 09260_ K-01 Serf collects debris. 09289_ IGCWFVW%LLUG4S%MY1JP>UW LYA0M 09304_ System corrupted: Heat flow error (+190). 09308_ W-25 Informer destroyed. 09308_ Slug penetrates Wall. 09311_ Acquired 32 matter. 09333_ Penetrated by EMDS Slug. 09338_ System corrupted: Matter fused (-10). 09340_ EMDS Slug penetrates Wall. 09342_ Penetrated by EMDS Slug. 09342_ Imp. Titanium Leg destroyed. 09342_ EMDS Slug penetrates Wall. Map ----- +----------------------------------------------------+ | | | | | | | ?????????????????????????????????????????????????? | | ?????????????????????????????????????????????????? | | ??????????????????????????????????##########?????? | | ?????????????????????????????????? ???? | | ?????????????????????????????????? ???? | | ?????????????????????????????????? #??? | | ?????????????????????????????????? ! #??? | | ?????????????????????????????????# #??? | | ?????????????????????????????????# #??? | | ?????????????????????????????????# #??? | | ??????????????????+##????????????# #??? | | ?????????????????? ????????????# #??? | | ?????????????????? ????????????# #??? | | ??????????????????# i#???????????# #??? | | ??????????????????# #???????????# #??? | | ??????????????????# /??????????##+####+##+####??? | | ??????????????????# #??????????# | | ??????????????????# #??????????# ###??????? | | ????????????####??# #??????????# ##+###????????? | | ???????????? # #?########## #?????????????? | | ???????????#! """ /hh###;; #=# #?????????????? | | ???????????# "T ; #?????????????? | | ???????????# # @ " #?????????????? | | ???????????# ????######## ######?????????????? | | ?????????????????????????## ####????????????????? | | ?????????????????#######??# ## ###############??? | | ?????????????????# ??+ # = ###? | | ?????????????????# ?# " #? | | ?????????????????# ?# ! * ="#?? | | ?????????????????#= # # ! !%* ![%#?? | | ?????????????????# # # %==%= |%+! | | ?????????????????# + # ## ##""!!"#=##?? | | ?????????????????# k ##=# # #??? ###????? | | ???????########### ?#*## ### ##???????????? | | ???????# # ??# ####?# #????????????? | | ???????# """"" ###########+#"#### #????????????? | | ???????# ""T"" ]# ! # #????????????? | | ???????# # ####????????????? | | ???????# """ """ # = ] #??????? ???????? | | ???????# # % #?????! %#??????? | | ???????# """ """ # = #????? #??????? | | ???????# #######"/###########?? #??????? | | ???????#######+######## #"###"""## #?????? | | ????????????# %%= = ! % #?????? | | ????????????# ! % |% =%%*% = #?????? | | ????????????# !% % ! *%! "#????? | | ????????????###########= ##"#"#""## ]% ##????? | +----------------------------------------------------+ Best States ------------- Heat Dissipation 37 Energy Generation 25 Energy Capacity 350 Matter Stores 300 Matter Capacity 300 Sight Range 16 Robot Scan Range 16 Terrain Scan Range 20 Terrain Scan Density 135 Cloak Strength 3 Armor Coverage 400 Resistance: TH 30 Phase Shifting 5 Evasion (%) 45 Recoil Reduction 5 Offensive Hacking 12 Item Schematics ----------------- Hvy. Rocket Launcher | -7/Zion | Archive Imp. Proton Missile Launcher | -7/Zion | Archive Imp. Deuterium Engine | -7/Zion | Archive Power Amplifier | -7/Zion | Archive Arc Projector | -7/Zion | Archive Imp. Medium Treads | -7/Zion | Archive Great Axe | -7/Zion | Archive Adv. Plasma Cannon | -7/Zion | Archive Antigrav System | -7/Zion | Archive Imp. Field Recycling Unit | -7/Zion | Archive Hvy. Machine Gun | -7/Zion | Archive Focal Shield | -7/Zion | Archive Arm. Huge Wheel | -7/Zion | Archive Dynamic Insulation System | -7/Zion | Archive Imp. System Shield | -7/Zion | Archive Robot Schematics ------------------ G-47 Trooper | -7/Zion | Archive B-48 Gladiator | -7/Zion | Archive S-27 Virus | -7/Zion | Archive C-57 Dissector | -7/Zion | Archive Fabricated ------------ Nothing Repaired ---------- Nothing Studied --------- Lgt. Treads | -9/Materials | Hacked Imp. Treads | -9/Materials | Hacked Alien Tech Used ----------------- None Achievements -------------- None Challenges ------------ None Game ------ Seed VariableDimensionalPlating Manual? 0 Play Time 00:54:10 Cumulative 162.4 hours Start 2026.08.18 @ 12:52:30 End 2026.08.18 @ 13:49:24 Sessions 1 Manual Loads 0 Difficulty Rogue Special Mode None Game No. 323 Rogue 323 Adventurer 0 Explorer 0 Win Type - Total 2 Types 2/0/0/0/0/0/0/0/0/0 Lore% 57 Gallery% 58 Achievement% 45 Wizard Run 0 Options --------- Layout 2 ASCII 0 Keyboard 1 Movement Arrows Keybinds 0 Fullscreen 1 Font 24/Smallcaps Map View 50x44 Zoom Use 0% Tactical HUD 1 Map Filters NONE Filters NONE Steam 1 RUN: c56b5e83-0c41-4226-87b1-11c4b7cd9032